[Event "25th Abu Dhabi Master 2018"]
[Site "Abu Dhabi"]
[Date "2018.08.07"]
[Round "1"]
[White "Varshini, Veileven"]
[Black "Saduakassova, Dinara"]
[Result "0-1"]
[ECO "B49"]
[WhiteElo "2205"]
[BlackElo "2495"]
[Annotator "RC"]
[PlyCount "92"]
[EventDate "2018.08.05"]
[EventType "swiss"]
[EventCountry "UAE"]
[SourceTitle "playchess.com"]
[Source "ChessBase"]
[SourceQuality "1"]
[TimeControl "5400+30"]

1. e4 {[%emt 0:00:00]} c5 {[%emt 0:00:00]} 2. Nf3 {[%emt 0:00:00]} e6 {[%emt 0:00:00]} 3. Nc3 {[%emt 0:01:25]} Nc6 {[%emt 0:00:00]} 4. d4 {[%emt 0:00:24]} cxd4 {[%emt 0:00:00]} 5. Nxd4 {[%emt 0:00:06]} Qc7 {[%emt 0:00:00]} 6. Be3 {[%emt 0:02:27]} a6 {[%emt 0:00:05]} 7. Be2 {[%emt 0:01:31]} Nf6 {[%emt 0:00:14]} 8. a3 {[%emt 0:01:31]} Be7 {[%emt 0:00:52]} 9. O-O {[%emt 0:00:24]} O-O {[%emt 0:00:46]} 10. f4 {[%emt 0:03:31]} d6 {[%emt 0:00:08]} 11. Bf3 {[%emt 0:00:40]} Na5 {[%emt 0:07:36]} 12. Kh1 {[%emt 0:11:24]} Nc4 {[%emt 0:05:32]} 13. Bc1 {[%emt 0:00:11]} Bd7 {[%emt 0:05:12]} 14. Nde2 {[%emt 0:13:30]} Rac8 {[%emt 0:11:10]} 15. b3 {[%emt 0:02:05]} Na5 {[%emt 0:00:47]} 16. e5 {[%emt 0:20:18]} Ne8 {[%emt 0:02:00]} 17. Bb2 {[%emt 0:05:05]} dxe5 {[%emt 0:06:26]} 18. fxe5 {[%emt 0:00:17]} Nc6 {[%emt 0:04:47]} 19. Nf4 {[%emt 0:08:35]} Bg5 {[%emt 0:02:51]} 20. Nd3 {[%emt 0:03:29]} f5 {[%emt 0:03:52]} 21. Nd5 {[%emt 0:04:33]} exd5 {[%emt 0:08:08]} 22. Bxd5+ {[%emt 0:00:06]} Kh8 {[%emt 0:00:08]} 23. e6 {[%emt 0:00:40]} Rd8 {[%emt 0:04:58]} 24. exd7 {[%emt 0:00:32]} Qxd7 {[%emt 0:00:10]} 25. c4 {[%emt 0:03:10]} Nc7 {[%emt 0:04:13]} 26. Qh5 {[%emt 0:04:56]} Bf6 {[%emt 0:13:59]} 27. Nc5 {[%emt 0:05:54]} Qc8 {[%emt 0:01:28]} 28. Bxf6 {[%emt 0:01:20]} Rxf6 {[%emt 0:00:04]} 29. Rae1 {[%emt 0:01:24]} Nxd5 {[%emt 0:04:20]} 30. cxd5 {[%emt 0:00:06]} Nd4 {[%emt 0:01:18]} 31. b4 {[%emt 0:02:01]} b6 {[%emt 0:04:27]} 32. Nd3 {[%emt 0:00:41]} Rh6 {[%emt 0:03:41]} 33. Qf7 {[%emt 0:01:06]} Rf6 {[%emt 0:00:14]} 34. Qh5 {[%emt 0:01:23]} Qd7 {[%emt 0:01:52]} 35. Nf4 {[%emt 0:01:03]} Kg8 {[%emt 0:04:05]} 36. Qd1 {[%emt 0:01:25]} Nb5 {[%emt 0:00:06]} 37. Re6 {[%emt 0:00:40]} Nc3 {[%emt 0:01:27]} 38. Qd4 {[%emt 0:00:17]} Rxe6 {[%emt 0:00:19]} 39. Nxe6 {[%emt 0:00:07]} Qxe6 {[%emt 0:00:24]} 40. Qxc3 {[%emt 0:00:31]} Qxd5 {[%emt 0:00:04]} 41. h3 {[%emt 0:00:39]} Qd3 {[%emt 0:01:27]} 42. Qc1 {[%emt 0:00:30]} h6 {[%emt 0:00:11]} 43. Re1 {[%emt 0:00:36]} Kh7 {[%emt 0:00:22]} 44. Qc7 {[%emt 0:00:40]} Rd6 {[%emt 0:00:33]} 45. Re8 {[%emt 0:00:44]} Qf1+ {[%emt 0:00:06]} 46. Kh2 {[%emt 0:00:20]} Qf4+ {[%emt 0:00:05]} 0-1

[Event "25th Abu Dhabi Master 2018"]
[Site "Abu Dhabi"]
[Date "2018.08.07"]
[Round "1"]
[White "Mendonca, Leon Luke"]
[Black "Harsha, Bharathakoti"]
[Result "0-1"]
[ECO "E04"]
[WhiteElo "2168"]
[BlackElo "2454"]
[Annotator "ChessBase"]
[PlyCount "118"]
[EventDate "2018.08.05"]
[EventType "swiss"]
[EventCountry "UAE"]
[SourceTitle "playchess.com"]
[Source "ChessBase"]
[SourceQuality "1"]
[TimeControl "5400+30"]

1. d4 {[%emt 0:00:00]} e6 {[%emt 0:00:00]} 2. c4 {[%emt 0:00:00]} d5 {[%emt 0:00:00]} 3. Nf3 {[%emt 0:00:08]} Nf6 {[%emt 0:00:20]} 4. g3 {[%emt 0:00:11]} dxc4 {[%emt 0:02:15]} 5. Bg2 {[%emt 0:00:20]} a6 {[%emt 0:01:40]} 6. O-O {[%emt 0:04:21]} Nc6 {[%emt 0:00:35]} 7. Bg5 {[%emt 0:08:30]} Rb8 {[%emt 0:22:30]} 8. e3 {[%emt 0:07:20]} Bd7 {[%emt 0:08:37]} 9. Nfd2 {[%emt 0:11:48]} Na5 {[%emt 0:08:35]} 10. Qc2 {[%emt 0:14:12]} Be7 {[%emt 0:07:36]} 11. Rd1 {[%emt 0:05:05]} Bc6 {[%emt 0:04:34]} 12. Bxc6+ {[%emt 0:02:31]} Nxc6 {[%emt 0:00:18]} 13. Nxc4 {[%emt 0:01:07]} O-O {[%emt 0:03:11]} 14. Nc3 {[%emt 0:02:41]} Nd5 {[%emt 0:02:01]} 15. Bxe7 {[%emt 0:01:25]} Qxe7 {[%emt 0:00:45]} 16. Rac1 {[%emt 0:04:49]} Rfd8 {[%emt 0:01:20]} 17. a3 {[%emt 0:03:35]} h5 {[%emt 0:07:36]} 18. h4 {[%emt 0:03:53]} Nf6 {[%emt 0:02:25]} 19. Ne4 {[%emt 0:02:22]} Nxe4 {[%emt 0:00:48]} 20. Qxe4 {[%emt 0:00:15]} Rd5 {[%emt 0:01:20]} 21. Rc2 {[%emt 0:06:46]} Rbd8 {[%emt 0:02:43]} 22. Rdc1 {[%emt 0:02:13]} Nb8 {[%emt 0:10:04]} 23. Ne5 {[%emt 0:01:42]} c6 {[%emt 0:00:06]} 24. Kg2 {[%emt 0:02:10]} Nd7 {[%emt 0:02:40]} 25. Nxd7 {[%emt 0:00:36]} R8xd7 {[%emt 0:00:08]} 26. Rc5 {[%emt 0:04:38]} g6 {[%emt 0:02:09]} 27. b4 {[%emt 0:01:40]} Qd8 {[%emt 0:01:38]} 28. R1c2 {[%emt 0:01:29]} Kg7 {[%emt 0:00:43]} 29. Rc1 {[%emt 0:01:10]} Re7 {[%emt 0:01:15]} 30. Qf3 {[%emt 0:02:13]} Red7 {[%emt 0:02:29]} 31. Qe4 {[%emt 0:00:06]} Qf6 {[%emt 0:00:54]} 32. R1c2 {[%emt 0:00:57]} Qe7 {[%emt 0:01:17]} 33. Rc1 {[%emt 0:01:08]} Qd6 {[%emt 0:00:05]} 34. R1c2 {[%emt 0:01:22]} Rd8 {[%emt 0:00:17]} 35. Rc1 {[%emt 0:00:33]} Qd7 {[%emt 0:02:02]} 36. R1c2 {[%emt 0:00:27]} Qd6 {[%emt 0:01:28]} 37. Rc1 {[%emt 0:00:28]} Qd7 {[%emt 0:00:03]} 38. R1c2 {[%emt 0:00:04]} Ra8 {[%emt 0:00:04]} 39. Rxd5 {[%emt 0:04:04]} exd5 {[%emt 0:00:06]} 40. Qd3 {[%emt 0:00:24]} a5 {[%emt 0:00:48]} 41. Rc5 {[%emt 0:00:34]} axb4 {[%emt 0:00:45]} 42. axb4 {[%emt 0:00:02]} Ra2 {[%emt 0:01:43]} 43. b5 {[%emt 0:01:07]} Qe6 {[%emt 0:00:45]} 44. bxc6 {[%emt 0:00:29]} bxc6 {[%emt 0:00:10]} 45. Rc2 {[%emt 0:00:18]} Ra1 {[%emt 0:00:03]} 46. Qc3 {[%emt 0:00:33]} Qe4+ {[%emt 0:01:12]} 47. f3 {[%emt 0:00:21]} Qf5 {[%emt 0:00:01]} 48. Rb2 {[%emt 0:00:59]} g5 {[%emt 0:01:20]} 49. hxg5 {[%emt 0:00:45]} Qxg5 {[%emt 0:00:04]} 50. Re2 {[%emt 0:00:28]} Ra6 {[%emt 0:00:55]} 51. Kh2 {[%emt 0:00:30]} Qf6 {[%emt 0:00:21]} 52. Kg2 {[%emt 0:00:34]} Ra4 {[%emt 0:00:15]} 53. Qd3 {[%emt 0:00:35]} h4 {[%emt 0:00:48]} 54. gxh4 {[%emt 0:00:19]} Ra1 {[%emt 0:00:38]} 55. Qc3 {[%emt 0:00:40]} Qg6+ {[%emt 0:00:20]} 56. Kh2 {[%emt 0:00:15]} Rg1 {[%emt 0:00:30]} 57. Qe1 {[%emt 0:00:25]} Rxe1 {[%emt 0:00:08]} 58. Rxe1 {[%emt 0:00:01]} Qc2+ {[%emt 0:00:31]} 59. Kg3 {[%emt 0:00:04]} Qd2 {[%emt 0:00:04]} 0-1

[Event "25th Abu Dhabi Master 2018"]
[Site "Abu Dhabi"]
[Date "2018.08.07"]
[Round "1"]
[White "Michelle Catherina, P."]
[Black "Raja, Rithvik R"]
[Result "0-1"]
[ECO "B91"]
[WhiteElo "2153"]
[BlackElo "2436"]
[Annotator "NA"]
[PlyCount "108"]
[EventDate "2018.08.05"]
[EventType "swiss"]
[EventCountry "UAE"]
[SourceTitle "playchess.com"]
[Source "ChessBase"]
[SourceQuality "1"]
[TimeControl "5400+30"]

1. e4 {[%emt 0:01:47]} c5 {[%emt 0:00:00]} 2. Nf3 {[%emt 0:00:07]} d6 {[%emt 0:00:00]} 3. d4 {[%emt 0:00:09]} cxd4 {[%emt 0:00:00]} 4. Nxd4 {[%emt 0:00:06]} Nf6 {[%emt 0:00:00]} 5. Nc3 {[%emt 0:00:06]} a6 {[%emt 0:00:00]} 6. g3 {[%emt 0:00:10]} e5 {[%emt 0:00:25]} 7. Nf3 {[%emt 0:00:07]} b5 {[%emt 0:02:45]} 8. Bg2 {[%emt 0:07:23]} Nbd7 {[%emt 0:03:24]} 9. Nh4 {[%emt 0:03:50]} Nb6 {[%emt 0:04:18]} 10. a3 {[%emt 0:03:10]} Bg4 {[%emt 0:21:49]} 11. Qd3 {[%emt 0:04:17]} Be7 {[%emt 0:01:00]} 12. O-O {[%emt 0:02:37]} Rc8 {[%emt 0:02:46]} 13. b3 {[%emt 0:11:27]} O-O {[%emt 0:03:49]} 14. Re1 {[%emt 0:07:29]} Qc7 {[%emt 0:01:36]} 15. Bb2 {[%emt 0:01:27]} Rfd8 {[%emt 0:00:33]} 16. h3 {[%emt 0:16:56]} Be6 {[%emt 0:01:34]} 17. Re2 {[%emt 0:02:01]} g6 {[%emt 0:20:29]} 18. Qe3 {[%emt 0:04:56]} Qc5 {[%emt 0:06:27]} 19. Rd1 {[%emt 0:05:13]} Qxe3 {[%emt 0:01:54]} 20. Rxe3 {[%emt 0:00:06]} Rc5 {[%emt 0:00:09]} 21. Nf3 {[%emt 0:12:59]} Rdc8 {[%emt 0:01:23]} 22. Bf1 {[%emt 0:03:42]} h5 {[%emt 0:08:00]} 23. Ng5 {[%emt 0:04:51]} Ng4 {[%emt 0:03:46]} 24. hxg4 {[%emt 0:01:43]} Bxg5 {[%emt 0:00:02]} 25. Red3 {[%emt 0:00:50]} Bxg4 {[%emt 0:00:06]} 26. f3 {[%emt 0:02:14]} Be6 {[%emt 0:00:03]} 27. Rxd6 {[%emt 0:02:55]} Rxc3 {[%emt 0:00:36]} 28. Bxc3 {[%emt 0:00:28]} Rxc3 {[%emt 0:00:02]} 29. Kh1 {[%emt 0:00:48]} Be3 {[%emt 0:03:02]} 30. R6d3 {[%emt 0:00:32]} Rxd3 {[%emt 0:00:14]} 31. Rxd3 {[%emt 0:00:14]} Bc5 {[%emt 0:01:16]} 32. Rc3 {[%emt 0:00:42]} Bd4 {[%emt 0:07:25]} 33. Rc6 {[%emt 0:00:17]} Kf8 {[%emt 0:00:46]} 34. c4 {[%emt 0:00:48]} bxc4 {[%emt 0:00:50]} 35. bxc4 {[%emt 0:00:09]} a5 {[%emt 0:01:15]} 36. c5 {[%emt 0:00:47]} Na4 {[%emt 0:00:53]} 37. Ra6 {[%emt 0:00:14]} Nxc5 {[%emt 0:01:04]} 38. Rxa5 {[%emt 0:00:06]} Ke7 {[%emt 0:01:53]} 39. a4 {[%emt 0:01:09]} f5 {[%emt 0:02:51]} 40. exf5 {[%emt 0:00:31]} gxf5 {[%emt 0:00:01]} 41. Ra7+ {[%emt 0:00:33]} Kd6 {[%emt 0:00:09]} 42. a5 {[%emt 0:00:31]} Bd5 {[%emt 0:01:04]} 43. Be2 {[%emt 0:00:27]} e4 {[%emt 0:00:41]} 44. Kg2 {[%emt 0:00:29]} e3 {[%emt 0:01:06]} 45. Rh7 {[%emt 0:00:31]} Nb3 {[%emt 0:00:16]} 46. Rh6+ {[%emt 0:00:33]} Ke5 {[%emt 0:00:42]} 47. Kf1 {[%emt 0:00:31]} Nd2+ {[%emt 0:00:07]} 48. Kg2 {[%emt 0:00:29]} Nxf3 {[%emt 0:00:22]} 49. Rxh5 {[%emt 0:00:28]} Nd2+ {[%emt 0:00:21]} 50. Kh3 {[%emt 0:00:31]} Bf3 {[%emt 0:00:41]} 51. g4 {[%emt 0:00:30]} Bxe2 {[%emt 0:00:10]} 52. Rxf5+ {[%emt 0:00:06]} Ke4 {[%emt 0:00:07]} 53. Rf8 {[%emt 0:00:33]} Bf1+ {[%emt 0:00:43]} 54. Kg3 {[%emt 0:00:05]} Be5+ {[%emt 0:00:11]} 0-1

[Event "25th Abu Dhabi Master 2018"]
[Site "Abu Dhabi"]
[Date "2018.08.07"]
[Round "1"]
[White "Sarvesh Kumar, A."]
[Black "Ikeda, Junta"]
[Result "0-1"]
[ECO "B42"]
[WhiteElo "2145"]
[BlackElo "2419"]
[Annotator "NA"]
[PlyCount "108"]
[EventDate "2018.08.05"]
[EventType "swiss"]
[EventCountry "UAE"]
[SourceTitle "playchess.com"]
[Source "ChessBase"]
[SourceQuality "1"]
[TimeControl "5400+30"]

1. e4 {[%emt 0:00:00]} c5 {[%emt 0:00:00]} 2. Nf3 {[%emt 0:00:00]} e6 {[%emt 0:00:00]} 3. d4 {[%emt 0:00:00]} cxd4 {[%emt 0:00:00]} 4. Nxd4 {[%emt 0:00:00]} a6 {[%emt 0:00:00]} 5. Bd3 {[%emt 0:00:10]} Bc5 {[%emt 0:01:37]} 6. Nb3 {[%emt 0:00:08]} Be7 {[%emt 0:00:05]} 7. Qg4 {[%emt 0:00:17]} g6 {[%emt 0:00:06]} 8. Qe2 {[%emt 0:00:07]} d6 {[%emt 0:00:05]} 9. O-O {[%emt 0:00:20]} Nd7 {[%emt 0:00:11]} 10. f4 {[%emt 0:00:29]} Qc7 {[%emt 0:00:27]} 11. Nc3 {[%emt 0:01:10]} Ngf6 {[%emt 0:00:21]} 12. Be3 {[%emt 0:00:13]} b5 {[%emt 0:04:02]} 13. a3 {[%emt 0:08:52]} Bb7 {[%emt 0:01:04]} 14. Rad1 {[%emt 0:01:44]} O-O {[%emt 0:10:00]} 15. h3 {[%emt 0:07:21]} Rfe8 {[%emt 0:07:13]} 16. Qf2 {[%emt 0:06:22]} Rac8 {[%emt 0:03:26]} 17. g4 {[%emt 0:05:57]} Qb8 {[%emt 0:12:04]} 18. g5 {[%emt 0:24:39]} Nh5 {[%emt 0:00:52]} 19. Be2 {[%emt 0:00:08]} Ng7 {[%emt 0:03:31]} 20. Bf3 {[%emt 0:04:04]} Rf8 {[%emt 0:15:31]} 21. h4 {[%emt 0:11:56]} f6 {[%emt 0:05:36]} 22. Qh2 {[%emt 0:04:38]} Qa8 {[%emt 0:08:49]} 23. Na5 {[%emt 0:00:46]} Rxc3 {[%emt 0:00:49]} 24. bxc3 {[%emt 0:01:55]} Bxe4 {[%emt 0:00:07]} 25. Qg2 {[%emt 0:00:30]} Bxf3 {[%emt 0:01:18]} 26. Qxf3 {[%emt 0:00:31]} d5 {[%emt 0:02:00]} 27. Qe2 {[%emt 0:03:25]} Qc8 {[%emt 0:09:27]} 28. Bd4 {[%emt 0:04:36]} Nc5 {[%emt 0:01:04]} 29. Nb3 {[%emt 0:03:06]} Ne4 {[%emt 0:00:28]} 30. Rd3 {[%emt 0:01:29]} Nh5 {[%emt 0:07:06]} 31. Qg4 {[%emt 0:00:35]} Bd6 {[%emt 0:01:45]} 32. Be3 {[%emt 0:09:36]} f5 {[%emt 0:00:48]} 33. Qf3 {[%emt 0:00:36]} Nxc3 {[%emt 0:00:18]} 34. Bc1 {[%emt 0:00:42]} Ne4 {[%emt 0:00:17]} 35. Qg2 {[%emt 0:00:07]} Qc7 {[%emt 0:01:18]} 36. Nd4 {[%emt 0:00:37]} Kf7 {[%emt 0:00:33]} 37. Qh2 {[%emt 0:00:45]} Rc8 {[%emt 0:00:36]} 38. Kh1 {[%emt 0:00:28]} Qc4 {[%emt 0:02:24]} 39. Rff3 {[%emt 0:00:36]} Bc5 {[%emt 0:00:46]} 40. c3 {[%emt 0:00:29]} Bxd4 {[%emt 0:00:47]} 41. Rxd4 {[%emt 0:00:02]} Qxd4 {[%emt 0:00:43]} 42. cxd4 {[%emt 0:00:39]} Rxc1+ {[%emt 0:00:06]} 43. Kg2 {[%emt 0:00:24]} Rc2+ {[%emt 0:00:05]} 44. Kg1 {[%emt 0:00:03]} Rxh2 {[%emt 0:00:04]} 45. Kxh2 {[%emt 0:00:02]} Ke7 {[%emt 0:01:35]} 46. a4 {[%emt 0:01:03]} Kd6 {[%emt 0:01:39]} 47. axb5 {[%emt 0:00:30]} axb5 {[%emt 0:00:06]} 48. Ra3 {[%emt 0:00:04]} Kc6 {[%emt 0:00:25]} 49. Ra7 {[%emt 0:00:50]} b4 {[%emt 0:00:21]} 50. Rxh7 {[%emt 0:00:06]} b3 {[%emt 0:00:58]} 51. Rh8 {[%emt 0:00:05]} Kb5 {[%emt 0:01:11]} 52. Kg2 {[%emt 0:01:59]} Kc4 {[%emt 0:00:09]} 53. Kf3 {[%emt 0:00:08]} b2 {[%emt 0:00:24]} 54. Rb8 {[%emt 0:00:03]} b1=Q {[%emt 0:00:13]} 0-1

[Event "25th Abu Dhabi Master 2018"]
[Site "Abu Dhabi"]
[Date "2018.08.07"]
[Round "1"]
[White "Jeet, Jain"]
[Black "Jonkman, Harmen"]
[Result "1-0"]
[ECO "C54"]
[WhiteElo "2136"]
[BlackElo "2404"]
[Annotator "NA"]
[PlyCount "83"]
[EventDate "2018.08.05"]
[EventType "swiss"]
[EventCountry "UAE"]
[SourceTitle "playchess.com"]
[Source "ChessBase"]
[SourceQuality "1"]
[TimeControl "5400+30"]

1. e4 e5 2. Nf3 Nc6 3. Bc4 Bc5 4. c3 Nf6 5. d3 d6 6. Bb3 a6 7. Nbd2 Ba7 8. O-O Ne7 9. Re1 Ng6 10. Nf1 h6 11. Ng3 O-O 12. d4 Bg4 13. Nf5 exd4 14. cxd4 Re8 15. h3 Bxf5 16. exf5 Rxe1+ 17. Qxe1 Ne7 18. g4 Qd7 19. Qf1 Ned5 20. Qd3 c6 21. Bd2 Re8 22. Rd1 Bb6 23. Re1 Nc7 24. Rxe8+ Qxe8 25. Bf4 Qe4 26. Qxe4 Nxe4 27. Bc2 d5 28. Bxc7 Bxc7 29. Bxe4 dxe4 30. Nd2 Bb6 31. Nxe4 Bxd4 32. b3 Kf8 33. Kf1 Ke7 34. Ke2 b6 35. f4 Kd7 36. g5 h5 37. h4 g6 38. Ng3 c5 39. fxg6 fxg6 40. f5 gxf5 41. Nxf5 Be5 42. Kf3 1-0

[Event "25th Abu Dhabi Master 2018"]
[Site "Abu Dhabi"]
[Date "2018.08.07"]
[Round "1"]
[White "Srihari, LR."]
[Black "Dimakiling, Oliver"]
[Result "0-1"]
[ECO "A45"]
[WhiteElo "2135"]
[BlackElo "2401"]
[Annotator "NA"]
[PlyCount "70"]
[EventDate "2018.08.05"]
[EventType "swiss"]
[EventCountry "UAE"]
[SourceTitle "playchess.com"]
[Source "ChessBase"]
[SourceQuality "1"]
[TimeControl "5400+30"]

1. d4 {[%emt 0:00:00]} Nf6 {[%emt 0:00:00]} 2. Bg5 {[%emt 0:00:53]} Ne4 {[%emt 0:00:05]} 3. Bf4 {[%emt 0:00:19]} d5 {[%emt 0:00:18]} 4. e3 {[%emt 0:00:46]} c5 {[%emt 0:01:29]} 5. Bd3 {[%emt 0:01:08]} Nc6 {[%emt 0:03:42]} 6. Bxe4 {[%emt 0:01:25]} dxe4 {[%emt 0:00:11]} 7. d5 {[%emt 0:00:32]} e5 {[%emt 0:01:33]} 8. Bg3 {[%emt 0:05:26]} Ne7 {[%emt 0:00:08]} 9. Nc3 {[%emt 0:01:18]} Ng6 {[%emt 0:05:30]} 10. h4 {[%emt 0:08:23]} h5 {[%emt 0:00:16]} 11. Nxe4 {[%emt 0:21:34]} Qb6 {[%emt 0:00:53]} 12. Ne2 {[%emt 0:12:03]} Bf5 {[%emt 0:02:52]} 13. N4c3 {[%emt 0:01:26]} O-O-O {[%emt 0:00:22]} 14. e4 {[%emt 0:02:54]} Bd7 {[%emt 0:03:21]} 15. b3 {[%emt 0:02:14]} f5 {[%emt 0:05:28]} 16. f3 {[%emt 0:00:48]} Bd6 {[%emt 0:04:36]} 17. Qd2 {[%emt 0:02:12]} Rdf8 {[%emt 0:02:15]} 18. Bf2 {[%emt 0:02:05]} Kb8 {[%emt 0:01:25]} 19. O-O-O {[%emt 0:06:50]} Qa6 {[%emt 0:02:14]} 20. Qd3 {[%emt 0:03:22]} b5 {[%emt 0:00:27]} 21. exf5 {[%emt 0:04:11]} c4 {[%emt 0:02:50]} 22. Qe3 {[%emt 0:00:57]} Rxf5 {[%emt 0:03:51]} 23. Ng3 {[%emt 0:01:43]} cxb3 {[%emt 0:01:59]} 24. axb3 {[%emt 0:04:42]} Rc8 {[%emt 0:15:14]} 25. Nxf5 {[%emt 0:08:04]} Bxf5 {[%emt 0:00:07]} 26. g4 {[%emt 0:06:05]} hxg4 {[%emt 0:00:10]} 27. fxg4 {[%emt 0:00:06]} Bd7 {[%emt 0:00:26]} 28. Kd2 {[%emt 0:01:47]} Bb4 {[%emt 0:01:15]} 29. Ra1 {[%emt 0:00:28]} Qb6 {[%emt 0:00:06]} 30. Qxb6+ {[%emt 0:00:46]} axb6 {[%emt 0:00:06]} 31. Rh3 {[%emt 0:00:32]} Nf4 {[%emt 0:00:07]} 32. Rg3 {[%emt 0:00:28]} Nxd5 {[%emt 0:00:09]} 33. Re1 {[%emt 0:00:32]} Nxc3 {[%emt 0:00:17]} 34. Kc1 {[%emt 0:00:24]} Rf8 {[%emt 0:02:19]} 35. Bg1 {[%emt 0:00:35]} Na2+ {[%emt 0:00:56]} 0-1

[Event "25th Abu Dhabi Master 2018"]
[Site "Abu Dhabi"]
[Date "2018.08.07"]
[Round "1"]
[White "Mohamed, Faisal"]
[Black "Arjun, Kalyan"]
[Result "0-1"]
[ECO "C90"]
[WhiteElo "2134"]
[BlackElo "2390"]
[Annotator "NA"]
[PlyCount "76"]
[EventDate "2018.08.05"]
[EventType "swiss"]
[EventCountry "UAE"]
[SourceTitle "playchess.com"]
[Source "ChessBase"]
[SourceQuality "1"]
[TimeControl "5400+30"]

1. e4 e5 2. Nf3 Nc6 3. Bb5 a6 4. Ba4 Nf6 5. O-O Be7 6. Re1 b5 7. Bb3 d6 8. c3 O-O 9. d3 Na5 10. Bc2 c5 11. Nbd2 Nc6 12. Nf1 Re8 13. a4 Be6 14. Ne3 h6 15. h3 Rc8 16. axb5 axb5 17. d4 cxd4 18. cxd4 exd4 19. Nxd4 Nxd4 20. Qxd4 d5 21. exd5 Bc5 22. Qd3 Bxd5 23. Bb3 Bxb3 24. Qxb3 Qb6 25. Bd2 Ne4 26. Bb4 Bd4 27. Rad1 Rcd8 28. Rd3 Qg6 29. Red1 Qf6 30. Rf1 Qg5 31. f4 Qg6 32. Rf3 Bb6 33. Rxd8 Rxd8 34. Kh2 Qc6 35. Nf5 Qc1 36. Ne3 h5 37. Be7 Nd2 38. Qc3 Nxf3+ 0-1

[Event "25th Abu Dhabi Master 2018"]
[Site "Abu Dhabi"]
[Date "2018.08.07"]
[Round "1"]
[White "Bartakke, Amardeep S"]
[Black "Rakesh, Kumar Jena"]
[Result "1/2-1/2"]
[ECO "B09"]
[WhiteElo "2133"]
[BlackElo "2385"]
[Annotator "NA"]
[PlyCount "144"]
[EventDate "2018.08.05"]
[EventType "swiss"]
[EventCountry "UAE"]
[SourceTitle "playchess.com"]
[Source "ChessBase"]
[SourceQuality "1"]
[TimeControl "5400+30"]

1. e4 {[%emt 0:02:07]} d6 {[%emt 0:00:00]} 2. d4 {[%emt 0:00:21]} Nf6 {[%emt 0:00:00]} 3. Nc3 {[%emt 0:00:06]} g6 {[%emt 0:00:00]} 4. f4 {[%emt 0:00:08]} Bg7 {[%emt 0:00:00]} 5. Nf3 {[%emt 0:00:03]} O-O {[%emt 0:00:04]} 6. e5 {[%emt 0:00:10]} dxe5 {[%emt 0:01:29]} 7. fxe5 {[%emt 0:00:05]} Nd5 {[%emt 0:00:11]} 8. Bc4 {[%emt 0:01:30]} Be6 {[%emt 0:07:59]} 9. Bb3 {[%emt 0:03:18]} c5 {[%emt 0:01:45]} 10. Ne2 {[%emt 0:19:30]} Bg4 {[%emt 0:08:44]} 11. O-O {[%emt 0:04:09]} Nc6 {[%emt 0:05:01]} 12. c3 {[%emt 0:08:16]} cxd4 {[%emt 0:04:56]} 13. cxd4 {[%emt 0:00:21]} Na5 {[%emt 0:02:12]} 14. h3 {[%emt 0:05:30]} Nxb3 {[%emt 0:12:12]} 15. Qxb3 {[%emt 0:03:01]} Be6 {[%emt 0:13:33]} 16. Qxb7 {[%emt 0:02:55]} h6 {[%emt 0:01:45]} 17. Nc3 {[%emt 0:01:48]} a5 {[%emt 0:01:11]} 18. Qb5 {[%emt 0:05:10]} Rc8 {[%emt 0:01:47]} 19. Nxd5 {[%emt 0:03:44]} Bxd5 {[%emt 0:00:26]} 20. Rd1 {[%emt 0:13:36]} Bc4 {[%emt 0:11:49]} 21. Qb7 {[%emt 0:01:16]} Bd5 {[%emt 0:01:06]} 22. Qb5 {[%emt 0:00:05]} Rc4 {[%emt 0:04:47]} 23. Bd2 {[%emt 0:03:03]} Qa8 {[%emt 0:04:46]} 24. Rf1 {[%emt 0:05:02]} Rb8 {[%emt 0:03:33]} 25. Qxa5 {[%emt 0:01:20]} Qxa5 {[%emt 0:01:37]} 26. Bxa5 {[%emt 0:00:05]} Rxb2 {[%emt 0:00:05]} 27. Rf2 {[%emt 0:03:55]} Rxf2 {[%emt 0:00:24]} 28. Kxf2 {[%emt 0:00:03]} Bxf3 {[%emt 0:00:07]} 29. Kxf3 {[%emt 0:03:53]} Rxd4 {[%emt 0:00:08]} 30. Re1 {[%emt 0:00:31]} Ra4 {[%emt 0:00:24]} 31. Bd8 {[%emt 0:00:21]} Kf8 {[%emt 0:00:15]} 32. Re2 {[%emt 0:01:48]} Ke8 {[%emt 0:00:27]} 33. Bb6 {[%emt 0:02:54]} Kd7 {[%emt 0:04:03]} 34. e6+ {[%emt 0:00:57]} fxe6 {[%emt 0:00:13]} 35. Bc5 {[%emt 0:00:18]} e5 {[%emt 0:00:14]} 36. a3 {[%emt 0:00:13]} Rf4+ {[%emt 0:00:56]} 37. Ke3 {[%emt 0:00:28]} Rc4 {[%emt 0:00:01]} 38. Rd2+ {[%emt 0:01:27]} Ke6 {[%emt 0:00:06]} 39. Bb4 {[%emt 0:00:29]} Bf6 {[%emt 0:00:02]} 40. Ra2 {[%emt 0:01:24]} e4 {[%emt 0:00:28]} 41. Be1 {[%emt 0:00:11]} Bg5+ {[%emt 0:01:31]} 42. Ke2 {[%emt 0:00:05]} Ra4 {[%emt 0:00:12]} 43. Bb4 {[%emt 0:00:22]} Bf4 {[%emt 0:00:06]} 44. Rc2 {[%emt 0:01:43]} Bd6 {[%emt 0:00:08]} 45. Ke3 {[%emt 0:00:47]} Bxb4 {[%emt 0:00:23]} 46. axb4 {[%emt 0:00:50]} Rxb4 {[%emt 0:00:02]} 47. Rc6+ {[%emt 0:00:10]} Kf5 {[%emt 0:00:16]} 48. g4+ {[%emt 0:02:47]} Ke5 {[%emt 0:00:14]} 49. Rxg6 {[%emt 0:00:39]} Rb3+ {[%emt 0:00:05]} 50. Ke2 {[%emt 0:00:03]} Rxh3 {[%emt 0:00:08]} 51. g5 {[%emt 0:00:22]} hxg5 {[%emt 0:02:41]} 52. Rxg5+ {[%emt 0:00:03]} Kf4 {[%emt 0:00:01]} 53. Rg2 {[%emt 0:01:37]} e3 {[%emt 0:00:22]} 54. Rg7 {[%emt 0:00:08]} Rh2+ {[%emt 0:00:14]} 55. Ke1 {[%emt 0:00:04]} e5 {[%emt 0:00:04]} 56. Rf7+ {[%emt 0:00:20]} Ke4 {[%emt 0:00:02]} 57. Rf8 {[%emt 0:00:01]} Rb2 {[%emt 0:03:32]} 58. Rd8 {[%emt 0:00:14]} Rc2 {[%emt 0:04:12]} 59. Rf8 {[%emt 0:00:07]} Rc4 {[%emt 0:03:57]} 60. Ke2 {[%emt 0:00:04]} Rb4 {[%emt 0:00:09]} 61. Rh8 {[%emt 0:00:22]} Rb2+ {[%emt 0:00:13]} 62. Ke1 {[%emt 0:00:03]} e2 {[%emt 0:01:42]} 63. Rh3 {[%emt 0:00:43]} Kd4 {[%emt 0:00:12]} 64. Rg3 {[%emt 0:00:27]} Rc2 {[%emt 0:01:26]} 65. Rh3 {[%emt 0:00:09]} Rc3 {[%emt 0:00:56]} 66. Rxc3 {[%emt 0:00:42]} Kxc3 {[%emt 0:00:04]} 67. Kxe2 {[%emt 0:00:06]} Kd4 {[%emt 0:00:04]} 68. Kd2 {[%emt 0:00:02]} e4 {[%emt 0:00:07]} 69. Ke2 {[%emt 0:00:11]} e3 {[%emt 0:00:04]} 70. Ke1 {[%emt 0:00:09]} Kd3 {[%emt 0:00:04]} 71. Kd1 {[%emt 0:00:12]} e2+ {[%emt 0:00:05]} 72. Ke1 {[%emt 0:00:02]} Ke3 {[%emt 0:00:05]} 1/2-1/2